lending/lending_fUSD_20241007
["ID","MTS","AMOUNT","RATE_DAILY","PERIOD"]
[340017511,1728334245402,-500.0,0.00034686,2]
[340017513,1728334245411,-500.0,0.00034686,2]
[340017515,1728334245420,-500.0,0.00034686,2]
[340017520,1728334245456,-500.0,0.00034686,2]
[340017522,1728334245464,-500.0,0.00034686,2]
[340017524,1728334245474,-500.0,0.00034686,2]
[340017526,1728334245483,-500.0,0.00034686,2]
[340017528,1728334245492,-500.0,0.00034686,2]
[340017530,1728334245501,-500.0,0.00034686,2]
[340017532,1728334245510,-500.0,0.00034686,2]
[340017534,1728334245520,-500.0,0.00034686,2]
[340017536,1728334245529,-500.0,0.00034686,2]
[340017538,1728334245540,-500.0,0.00034686,2]
[340017540,1728334245549,-500.0,0.00034686,2]
[340017542,1728334245558,-854.55,0.00034686,2]
[340017544,1728334245567,-444.88,0.00034686,2]
[340017546,1728334245577,-50000.0,0.00035,25]
[340017548,1728334245586,-50000.0,0.00035,35]
[340017550,1728334245595,-250.20776563,0.00035,2]
[340017552,1728334245604,-850.0,0.00035,2]
[340017554,1728334245614,-152.0,0.00035051,3]
[340017556,1728334245624,-2999.98,0.00035359,2]
[340017558,1728334245633,-3000.0,0.00035359,2]
[340017560,1728334245643,-3000.0,0.00035359,2]
[340017561,1728334245652,-3000.0,0.00035359,2]
[340017563,1728334245662,-3000.0,0.00035359,2]
[340017565,1728334245672,-1110.8,0.00035359,2]
[340017567,1728334245681,-3000.0,0.000356,2]
[340017569,1728334245690,-1000.0,0.00035616,2]
[340017571,1728334245701,-476.04,0.00035616,120]
[340017573,1728334245710,-150.0,0.00035735,2]
[340017575,1728334245719,-339.62,0.00035817,2]
[340017576,1728334245728,-174.0,0.00035945,2]
[340017578,1728334245737,-50000.0,0.00036,26]
[340017580,1728334245746,-50000.0,0.00036,36]
[340017582,1728334245756,-151.100805,0.00036798,120]
[340017584,1728334245765,-50000.0,0.00037,27]
[340017586,1728334245774,-50000.0,0.00037,37]
[340017588,1728334245783,-900.0,0.00037,2]
[340017590,1728334245792,-157.100805,0.00037198,120]
[340017591,1728334245801,-5800.0,0.00037441,2]
[340017593,1728334245810,-5800.0,0.00037449,2]
[340017595,1728334245820,-5800.0,0.00037458,2]
[340017597,1728334245829,-5800.0,0.00037466,2]
[340017599,1728334245838,-5800.0,0.00037475,2]
[340017601,1728334245847,-5800.0,0.00037483,2]
[340017602,1728334245856,-5800.0,0.00037491,2]
[340017604,1728334245865,-151.100805,0.00037498,120]
[340017606,1728334245874,-5800.0,0.000375,2]
[340017608,1728334245883,-5800.0,0.00037509,2]
[340017610,1728334245892,-5800.0,0.00037517,2]
[340017612,1728334245901,-5800.0,0.00037526,2]
[340017613,1728334245910,-5800.0,0.00037534,2]
[340017615,1728334245919,-157.100805,0.00037798,120]
[340017617,1728334245929,-432.98,0.00037974,2]
[340017619,1728334245938,-150.0,0.00037974,2]
[340017621,1728334245947,-150.0,0.00037974,2]
[340017623,1728334245956,-150.0,0.00037974,2]
[340017625,1728334245966,-150.0,0.00037974,2]
[340017628,1728334245975,-150.0,0.00037974,2]
[340017630,1728334245984,-150.0,0.00037974,2]
[340017633,1728334245993,-150.0,0.00037974,2]
[340017635,1728334246003,-150.0,0.00037974,2]
[340017636,1728334246011,-150.0,0.00037974,2]
[340017638,1728334246020,-150.0,0.00037974,2]
[340017640,1728334246029,-50000.0,0.00038,28]
[340017642,1728334246038,-50000.0,0.00038,38]
[340017644,1728334246048,-6500.0,0.00038,7]
[340017646,1728334246057,-6500.0,0.00038,7]
[340017648,1728334246066,-151.0,0.00038,7]
[340017650,1728334246075,-339.62,0.00038081,2]
[340017652,1728334246084,-500.0,0.00038164,60]
[340017654,1728334246095,-500.0,0.00038164,60]
[340017656,1728334246105,-151.100805,0.00038198,120]
[340017658,1728334246114,-505.26131689,0.00038356,120]
[340017660,1728334246123,-500.0,0.00038356,120]
[340017662,1728334246133,-500.0,0.00038356,120]
[340017663,1728334246142,-500.0,0.00038356,120]
[340017665,1728334246151,-500.0,0.00038356,120]
[340017667,1728334246160,-500.0,0.00038356,120]
[340017669,1728334246171,-500.0,0.00038356,120]
[340017671,1728334246185,-500.0,0.00038356,120]
[340017674,1728334246195,-500.0,0.00038356,120]
[340017675,1728334246204,-508.85181593,0.00038356,120]
[340017677,1728334246213,-513.23399302,0.00038356,120]
[340017680,1728334246222,-500.0,0.00038356,120]
[340017682,1728334246231,-500.0,0.00038356,120]
[340017683,1728334246240,-500.0,0.00038356,120]
[340017685,1728334246250,-500.0,0.00038356,120]
[340017687,1728334246259,-500.0,0.00038356,120]
[340017689,1728334246268,-500.0,0.00038356,120]
[340017691,1728334246277,-510.45778528,0.00038356,120]
[340017692,1728334246285,-500.0,0.00038356,120]
[340017693,1728334246294,-514.10794027,0.00038356,120]
[340017694,1728334246304,-500.0,0.00038356,120]
[340017695,1728334246313,-500.0,0.00038356,120]
[340017696,1728334246323,-500.0,0.00038356,120]
[340017697,1728334246332,-500.0,0.00038356,120]
[340017698,1728334246341,-500.0,0.00038356,120]
[340017699,1728334246352,-500.0,0.00038356,120]
[340017700,1728334246361,-528.06262259,0.00038356,120]
[340017702,1728334246370,-500.0,0.00038356,120]
[340017703,1728334246380,-500.0,0.00038356,120]
[340017706,1728334246389,-521.03,0.00038356,120]
[340017707,1728334246398,-519.24353936,0.00038356,120]
[340017709,1728334246408,-362.88615774,0.00038356,120]
[340017712,1728334246419,-500.0,0.00038356,120]
[340017714,1728334246429,-454.84086397,0.00038356,120]
[340017716,1728334246438,-500.0,0.00038356,120]
[340017718,1728334246448,-500.0,0.00038356,120]
[340017720,1728334246457,-504.87419054,0.00038356,120]
[340017722,1728334246467,-500.0,0.00038356,120]
[340017724,1728334246477,-500.0,0.00038356,120]
[340017726,1728334246486,-500.0,0.00038356,120]
[340017728,1728334246495,-500.0,0.00038356,120]
[340017730,1728334246505,-500.0,0.00038356,120]
[340017732,1728334246514,-500.0,0.00038356,120]
[340017734,1728334246523,-500.0,0.00038356,120]
[340017736,1728334246532,-500.0,0.00038356,120]
[340017738,1728334246543,-506.98152722,0.00038356,120]
[340017740,1728334246552,-500.0,0.00038356,120]
[340017742,1728334246561,-504.41943728,0.00038356,120]
[340017744,1728334246570,-500.0,0.00038356,120]
[340017746,1728334246579,-500.0,0.00038356,120]
[340017748,1728334246588,-500.0,0.00038356,120]
[340017750,1728334246597,-500.0,0.00038356,120]
[340017752,1728334246606,-268.00942695,0.00038356,120]
[340017754,1728334246615,-500.0,0.00038356,120]
[340017756,1728334246624,-500.0,0.00038356,120]
[340017758,1728334246633,-500.0,0.00038356,120]
[340017760,1728334246642,-500.0,0.00038356,120]
[340017762,1728334246651,-500.0,0.00038356,120]
[340017764,1728334246660,-500.0,0.00038356,120]
[340017766,1728334246670,-600.97561893,0.00038356,120]
[340017768,1728334246679,-550.42,0.00038356,120]
[340017770,1728334246689,-500.0,0.00038356,120]
[340017772,1728334246698,-500.0,0.00038356,120]
[340017774,1728334246707,-500.0,0.00038356,120]
[340017776,1728334246716,-500.0,0.00038356,120]
[340017778,1728334246726,-500.0,0.00038356,120]
[340017780,1728334246735,-500.0,0.00038356,120]
[340017782,1728334246744,-500.0,0.00038356,120]
[340017784,1728334246754,-389.14263314,0.00038356,120]
[340017786,1728334246764,-500.0,0.00038356,120]
[340017788,1728334246774,-500.0,0.00038356,120]
[340017790,1728334246783,-500.0,0.00038356,120]
[340017792,1728334246793,-150.0,0.00038356,120]
[340017794,1728334246802,-500.0,0.00038356,120]
[340017796,1728334246812,-500.0,0.00038356,120]
[340017798,1728334246821,-451.05024611,0.00038356,120]
[340017800,1728334246831,-500.0,0.00038356,120]
[340017802,1728334246840,-500.0,0.00038356,120]
[340017804,1728334246849,-500.0,0.00038356,120]
[340017806,1728334246859,-500.0,0.00038356,120]
[340017808,1728334246868,-1250.0,0.00038356,2]
[340017811,1728334246878,-500.0,0.00038356,120]
[340017813,1728334246887,-500.0,0.00038356,120]
[340017815,1728334246896,-500.0,0.00038356,120]
[340017817,1728334246905,-500.0,0.00038356,120]
[340017819,1728334246914,-500.0,0.00038356,120]
[340017821,1728334246925,-500.0,0.00038356,120]
[340017822,1728334246934,-500.0,0.00038356,120]
[340017824,1728334246943,-500.0,0.00038356,14]
[340017826,1728334246952,-500.0,0.00038356,120]
[340017828,1728334246962,-746.07,0.00038356,120]
[340017830,1728334246971,-500.0,0.00038356,120]
[340017832,1728334246981,-500.0,0.00038356,30]
[340017834,1728334246990,-500.0,0.00038356,120]
[340017836,1728334247000,-500.0,0.00038356,120]
[340017838,1728334247009,-500.0,0.00038356,120]
[340017840,1728334247019,-500.0,0.00038356,120]
[340017842,1728334247028,-500.0,0.00038356,120]
[340017844,1728334247038,-500.0,0.00038356,120]
[340017846,1728334247047,-500.0,0.00038356,120]
[340017848,1728334247056,-500.0,0.00038356,120]
[340017849,1728334247066,-500.0,0.00038356,120]
[340017851,1728334247075,-500.0,0.00038356,120]
[340017853,1728334247086,-500.0,0.00038356,120]
[340017855,1728334247096,-500.0,0.00038356,120]
[340017857,1728334247108,-509.30922613,0.00038356,120]
[340017859,1728334247118,-500.0,0.00038356,120]
[340017861,1728334247128,-500.14519343,0.00038356,120]
[340017863,1728334247138,-519.03572159,0.00038356,120]
[340017865,1728334247147,-500.0,0.00038356,120]
[340017867,1728334247156,-467.12915618,0.00038356,120]
[340017869,1728334247166,-500.0,0.00038356,120]
[340017870,1728334247177,-524.72,0.00038356,120]
[340017872,1728334247188,-193.727716,0.00038356,7]
[340017874,1728334247199,-500.0,0.00038356,120]
[340017876,1728334247209,-193.727716,0.00038356,7]
[340017878,1728334247219,-500.0,0.00038356,120]
[340017880,1728334247228,-668.47,0.00038356,120]
[340017882,1728334247238,-603.27854874,0.00038356,120]
[340017884,1728334247247,-506.50137288,0.00038356,120]
[340017886,1728334247257,-500.0,0.00038356,120]
[340017888,1728334247267,-500.0,0.00038356,120]
[340017890,1728334247277,-500.0,0.00038356,120]
[340017892,1728334247286,-405.24707328,0.00038356,120]
[340017894,1728334247296,-511.73334118,0.00038356,120]
[340017896,1728334247305,-500.0,0.00038356,120]
[340017897,1728334247315,-500.0,0.00038356,120]
[340017899,1728334247324,-500.0,0.00038356,120]
[340017901,1728334247333,-500.0,0.00038356,120]
[340017903,1728334247343,-500.0,0.00038356,120]
[340017905,1728334247352,-872.94,0.00038356,120]
[340017907,1728334247363,-935.85,0.00038356,120]
[340017909,1728334247372,-500.0,0.00038356,120]
[340017911,1728334247381,-641.57,0.00038356,120]
[340017913,1728334247391,-500.0,0.00038356,120]
[340017915,1728334247400,-529.00262649,0.00038356,120]
[340017917,1728334247410,-500.0,0.00038356,120]
[340017919,1728334247420,-500.0,0.00038356,120]
[340017921,1728334247430,-1500.0,0.00038356,120]
[340017923,1728334247440,-1500.0,0.00038356,120]
[340017925,1728334247450,-1500.0,0.00038356,120]
[340017927,1728334247460,-1500.0,0.00038356,120]
[340017929,1728334247470,-1500.0,0.00038356,120]
[340017931,1728334247480,-1500.0,0.00038356,120]
[340017933,1728334247489,-1500.0,0.00038356,120]
[340017935,1728334247499,-1500.0,0.00038356,120]
[340017937,1728334247509,-500.0,0.00038356,120]
[340017939,1728334247518,-1500.0,0.00038356,120]
[340017941,1728334247528,-409.0,0.00038356,120]
[340017943,1728334247538,-185.21,0.00038356,120]
[340017945,1728334247548,-939.41,0.00038356,120]
[340017947,1728334247558,-500.0,0.00038356,120]
[340017949,1728334247568,-354.21387813,0.00038356,120]
[340017951,1728334247578,-500.0,0.00038356,120]
[340017953,1728334247587,-500.0,0.00038356,120]
[340017955,1728334247598,-500.0,0.00038356,120]
[340017957,1728334247607,-500.0,0.00038356,120]
[340017959,1728334247617,-500.0,0.00038356,120]
[340017961,1728334247626,-500.0,0.00038356,120]
[340017963,1728334247636,-500.0,0.00038356,120]
[340017965,1728334247645,-500.0,0.00038356,120]
[340017967,1728334247654,-500.0,0.00038356,120]
[340017969,1728334247664,-500.0,0.00038356,120]
[340017971,1728334247676,-500.0,0.00038356,120]
[340017974,1728334247686,-500.0,0.00038356,120]
[340017975,1728334247695,-500.0,0.00038356,120]
[340017977,1728334247704,-500.0,0.00038356,120]
[340017979,1728334247715,-500.0,0.00038356,120]
[340017981,1728334247724,-587.25816281,0.0003836,120]
[340017983,1728334247734,-587.25816281,0.0003836,120]
[340017985,1728334247743,-587.25816281,0.0003836,120]
[340017987,1728334247752,-587.25816281,0.0003836,120]
[340017989,1728334247762,-587.25816281,0.0003836,120]
[340017991,1728334247773,-587.25816281,0.0003836,120]
[340017993,1728334247783,-587.25816281,0.0003836,120]
[340017995,1728334247793,-587.25816281,0.0003836,120]
[340017997,1728334247803,-587.25816281,0.0003836,120]
[340017999,1728334247813,-587.25816281,0.0003836,120]
[340018001,1728334247824,-587.25816281,0.0003836,120]
[340018003,1728334247834,-587.25816281,0.0003836,120]
[340018005,1728334247844,-587.25816281,0.0003836,120]
[340018007,1728334247855,-587.25816281,0.0003836,120]
[340018009,1728334247865,-587.25816281,0.0003836,120]
[340018011,1728334247875,-587.25816281,0.0003836,120]
[340018013,1728334247885,-587.25816281,0.0003836,120]
[340018014,1728334247895,-587.25816281,0.0003836,120]
[340018015,1728334247904,-587.25816281,0.0003836,120]
[340018016,1728334247914,-587.75,0.0003836,120]
[340018017,1728334247925,-812.75229339,0.0003836,120]
[340018018,1728334247935,-812.75229339,0.0003836,120]
[340018019,1728334247946,-812.75229339,0.0003836,120]
[340018020,1728334247956,-812.75229339,0.0003836,120]
[340018021,1728334247967,-812.75229339,0.0003836,120]
[340018022,1728334247977,-812.75229339,0.0003836,120]
[340018024,1728334247987,-812.75229339,0.0003836,120]
[340018026,1728334247997,-812.75229339,0.0003836,120]
[340018028,1728334248007,-812.75229339,0.0003836,120]
[340018030,1728334248017,-812.75229339,0.0003836,120]
[340018032,1728334248027,-812.75229339,0.0003836,120]
[340018034,1728334248038,-812.75229339,0.0003836,120]
[340018036,1728334248049,-812.75229339,0.0003836,120]
[340018038,1728334248058,-812.75229339,0.0003836,120]
[340018040,1728334248069,-812.75229339,0.0003836,120]
[340018041,1728334248079,-812.75229339,0.0003836,120]
[340018044,1728334248090,-812.75229339,0.0003836,120]
[340018046,1728334248104,-812.75229339,0.0003836,120]
[340018048,1728334248114,-812.75229339,0.0003836,120]
[340018050,1728334248124,-813.25,0.0003836,120]
[340018052,1728334248134,-853.90520063,0.0003836,120]
[340018054,1728334248145,-853.90520063,0.0003836,120]
[340018056,1728334248155,-853.90520063,0.0003836,120]
[340018058,1728334248164,-853.90520063,0.0003836,120]
[340018060,1728334248176,-853.90520063,0.0003836,120]
[340018062,1728334248186,-853.90520063,0.0003836,120]
[340018064,1728334248196,-853.90520063,0.0003836,120]
[340018066,1728334248206,-853.90520063,0.0003836,120]
[340018068,1728334248216,-853.90520063,0.0003836,120]
[340018070,1728334248227,-853.90520063,0.0003836,120]
[340018072,1728334248236,-853.90520063,0.0003836,120]
[340018074,1728334248246,-853.90520063,0.0003836,120]
[340018076,1728334248256,-853.90520063,0.0003836,120]
[340018078,1728334248266,-853.90520063,0.0003836,120]
[340018080,1728334248277,-853.90520063,0.0003836,120]
[340018082,1728334248287,-853.90520063,0.0003836,120]
[340018084,1728334248296,-853.90520063,0.0003836,120]
[340018086,1728334248306,-853.90520063,0.0003836,120]
[340018088,1728334248316,-853.90520063,0.0003836,120]
[340018090,1728334248325,-854.4,0.0003836,120]
[340018092,1728334248335,-3000.0,0.000384,2]
[340018094,1728334248345,-1431.0,0.000384,2]
[340018096,1728334248354,-1000.0,0.00038493,120]
[340018098,1728334248364,-157.100805,0.00038498,120]
[340018100,1728334248374,-431.19,0.000385,14]
[340018102,1728334248383,-500.0,0.0003863,120]
[340018104,1728334248393,-500.0,0.0003863,120]
[340018106,1728334248402,-500.0,0.0003863,120]
[340018108,1728334248412,-151.81,0.0003863,120]
[340018111,1728334248423,-500.0,0.0003863,120]
[340018112,1728334248433,-500.0,0.0003863,120]
[340018114,1728334248442,-288.31036678,0.0003863,120]
[340018117,1728334248452,-500.0,0.0003863,120]
[340018119,1728334248462,-160.09285273,0.0003863,120]
[340018121,1728334248472,-500.0,0.0003863,120]
[340018123,1728334248481,-150.0,0.0003863,120]
[340018125,1728334248491,-500.0,0.0003863,120]
[340018139,1728334248616,-500.0,0.0003863,120]
[340018141,1728334248626,-500.0,0.0003863,120]
[340018143,1728334248635,-500.0,0.0003863,120]
[340018145,1728334248644,-500.0,0.0003863,120]
[340018147,1728334248654,-500.0,0.0003863,120]
[340018149,1728334248662,-500.0,0.0003863,14]
[340018150,1728334248671,-500.0,0.0003863,120]
[340018152,1728334248681,-746.07,0.0003863,120]
[340018154,1728334248690,-500.0,0.0003863,30]
[340018156,1728334248699,-500.0,0.0003863,120]
[340018158,1728334248708,-279.42,0.0003863,120]
[340018160,1728334248717,-500.0,0.0003863,120]
[340018162,1728334248726,-524.72,0.0003863,120]
[340018164,1728334248735,-500.0,0.0003863,120]
[340018166,1728334248744,-668.47,0.0003863,120]
[340018168,1728334248753,-500.0,0.0003863,120]
[340018170,1728334248762,-500.0,0.0003863,120]
[340018172,1728334248771,-872.94,0.0003863,120]
[340018174,1728334248781,-935.85,0.0003863,120]
[340018176,1728334248790,-641.57,0.0003863,120]
[340018178,1728334248799,-500.0,0.0003863,120]
[340018180,1728334248808,-215.71345595,0.0003863,120]
[340018181,1728334248816,-939.41,0.0003863,120]
[340018183,1728334248826,-500.0,0.0003863,120]
[340018185,1728334248835,-500.0,0.0003863,120]
[340018187,1728334248846,-500.0,0.0003863,120]
[340018189,1728334248855,-29999.99,0.00038678,30]
[340018191,1728334248864,-500.0,0.00038712,60]
[340018193,1728334248873,-151.100805,0.00038798,120]
[340018195,1728334248883,-500.0,0.00038904,120]
[340018197,1728334248893,-500.0,0.00038904,120]
[340018199,1728334248902,-500.0,0.00038904,120]
[340018201,1728334248913,-500.0,0.00038904,120]
[340018203,1728334248922,-315.51076226,0.00038904,120]
[340018205,1728334248931,-485.91058542,0.00038904,120]
[340018207,1728334248941,-500.0,0.00038904,120]
[340018209,1728334248950,-150.0,0.00038904,120]
[340018211,1728334248959,-500.0,0.00038904,120]
[340018213,1728334248969,-500.0,0.00038904,120]
[340018215,1728334248978,-182.68353547,0.00038904,120]
[340018217,1728334248987,-500.0,0.00038904,120]
[340018219,1728334248996,-500.0,0.00038904,120]
[340018221,1728334249006,-500.0,0.00038904,120]
[340018223,1728334249015,-500.0,0.00038904,14]
[340018225,1728334249025,-500.0,0.00038904,120]
[340018227,1728334249034,-746.07,0.00038904,120]
[340018229,1728334249043,-500.0,0.00038904,30]
[340018231,1728334249052,-500.0,0.00038904,120]
[340018233,1728334249062,-500.0,0.00038904,120]
[340018235,1728334249071,-524.72,0.00038904,120]
[340018237,1728334249081,-500.0,0.00038904,120]
[340018239,1728334249090,-668.47,0.00038904,120]
[340018241,1728334249100,-500.0,0.00038904,120]
[340018243,1728334249112,-160.42700595,0.00038904,120]
[340018245,1728334249121,-872.94,0.00038904,120]
[340018247,1728334249130,-935.85,0.00038904,120]
[340018249,1728334249140,-641.57,0.00038904,120]
[340018251,1728334249149,-500.06364704,0.00038904,120]
[340018253,1728334249158,-939.41,0.00038904,120]
[340018255,1728334249167,-500.0,0.00038904,120]
[340018257,1728334249178,-500.0,0.00038904,120]
[340018259,1728334249188,-500.0,0.00038904,120]
[340018261,1728334249197,-50000.0,0.00039,29]
[340018263,1728334249207,-50000.0,0.00039,39]
[340018265,1728334249218,-950.0,0.00039,2]
[340018267,1728334249227,-500.0,0.00039178,120]
[340018269,1728334249237,-500.0,0.00039178,120]
[340018271,1728334249246,-500.0,0.00039178,120]
[340018273,1728334249255,-500.0,0.00039178,120]
[340018275,1728334249264,-500.0,0.00039178,120]
[340018277,1728334249273,-150.0,0.00039178,120]
[340018279,1728334249282,-500.0,0.00039178,120]
[340018281,1728334249292,-500.0,0.00039178,120]
[340018283,1728334249300,-500.0,0.00039178,120]
[340018285,1728334249309,-187.7186372,0.00039178,120]
[340018287,1728334249319,-500.0,0.00039178,120]
[340018289,1728334249327,-460.74744134,0.00039178,14]
[340018291,1728334249337,-500.0,0.00039178,120]
[340018293,1728334249346,-746.07,0.00039178,120]
[340018294,1728334249357,-500.0,0.00039178,30]
[340018295,1728334249366,-500.0,0.00039178,120]
[340018296,1728334249375,-500.0,0.00039178,120]
[340018297,1728334249384,-524.72,0.00039178,120]
[340018298,1728334249393,-500.0,0.00039178,120]
[340018299,1728334249402,-668.47,0.00039178,120]
[340018300,1728334249411,-500.0,0.00039178,120]
[340018301,1728334249420,-872.94,0.00039178,120]
[340018302,1728334249430,-935.85,0.00039178,120]
[340018304,1728334249439,-641.57,0.00039178,120]
[340018305,1728334249448,-939.41,0.00039178,120]
[340018307,1728334249457,-500.0,0.00039178,120]
[340018309,1728334249466,-500.0,0.00039178,120]
[340018311,1728334249475,-500.0,0.00039178,120]
[340018313,1728334249484,-157.100805,0.00039198,120]
[340018315,1728334249493,-500.0,0.0003926,60]
[340018317,1728334249503,-500.0,0.0003926,60]
[340018319,1728334249511,-500.0,0.00039452,120]
[340018321,1728334249520,-500.0,0.00039452,120]
[340018323,1728334249529,-500.0,0.00039452,120]
[340018324,1728334249539,-500.0,0.00039452,120]
[340018326,1728334249549,-500.0,0.00039452,120]
[340018328,1728334249559,-150.0,0.00039452,120]
[340018330,1728334249568,-500.0,0.00039452,120]
[340018332,1728334249577,-500.0,0.00039452,120]
[340018334,1728334249586,-500.0,0.00039452,120]
[340018336,1728334249595,-500.0,0.00039452,120]
[340018338,1728334249604,-746.07,0.00039452,120]
[340018339,1728334249613,-500.0,0.00039452,30]
[340018341,1728334249622,-500.0,0.00039452,120]
[340018343,1728334249631,-582.19,0.00039452,120]
[340018345,1728334249640,-524.72,0.00039452,120]
[340018347,1728334249649,-500.0,0.00039452,120]
[340018349,1728334249660,-668.47,0.00039452,120]
[340018351,1728334249669,-563.47,0.00039452,120]
[340018353,1728334249682,-872.94,0.00039452,120]
[340018355,1728334249700,-935.85,0.00039452,120]
[340018357,1728334249709,-641.57,0.00039452,120]
[340018358,1728334249718,-939.41,0.00039452,120]
[340018360,1728334249728,-500.0,0.00039452,120]
[340018362,1728334249736,-331.89,0.00039452,120]
[340018364,1728334249745,-500.0,0.00039452,120]
[340018366,1728334249755,-151.100805,0.00039498,120]
[340018368,1728334249764,-500.0,0.00039726,120]
[340018370,1728334249773,-500.0,0.00039726,120]
[340018372,1728334249782,-500.0,0.00039726,120]
[340018374,1728334249791,-552.01,0.00039726,120]
[340018376,1728334249800,-500.0,0.00039726,120]
[340018378,1728334249809,-150.0,0.00039726,120]
[340018380,1728334249818,-500.0,0.00039726,120]
[340018382,1728334249827,-500.0,0.00039726,120]
[340018384,1728334249836,-500.0,0.00039726,120]
[340018385,1728334249845,-500.0,0.00039726,120]
[340018387,1728334249854,-746.07,0.00039726,120]
[340018389,1728334249863,-491.976,0.00039726,30]
[340018391,1728334249872,-500.0,0.00039726,120]
[340018393,1728334249882,-524.72,0.00039726,120]
[340018395,1728334249891,-500.0,0.00039726,120]
[340018396,1728334249899,-668.47,0.00039726,120]
[340018398,1728334249908,-872.94,0.00039726,120]
[340018400,1728334249917,-935.85,0.00039726,120]
[340018402,1728334249927,-641.57,0.00039726,120]
[340018404,1728334249936,-939.41,0.00039726,120]
[340018406,1728334249945,-500.0,0.00039726,120]
[340018408,1728334249954,-500.0,0.00039726,120]
[340018410,1728334249963,-157.100805,0.00039798,120]
[340018412,1728334249972,-50000.0,0.0004,30]
[340018413,1728334249981,-50000.0,0.0004,40]
[340018415,1728334249990,-2000.0,0.0004,60]
[340018417,1728334250000,-25000.0,0.0004,40]
[340018419,1728334250009,-25000.0,0.0004,40]
[340018421,1728334250018,-25000.0,0.0004,40]
[340018423,1728334250027,-25000.0,0.0004,40]
[340018425,1728334250036,-20000.0,0.0004,40]
[340018427,1728334250045,-20000.0,0.0004,40]
[340018428,1728334250055,-21280.19384637,0.0004,40]
[340018430,1728334250063,-12843.3215052,0.0004,40]
[340018432,1728334250073,-20000.0,0.0004,40]
[340018434,1728334250082,-17887.92480754,0.0004,40]
[340018436,1728334250091,-25000.0,0.0004,40]
[340018438,1728334250103,-25000.0,0.0004,40]
[340018440,1728334250113,-25000.0,0.0004,40]
[340018442,1728334250122,-25000.0,0.0004,40]
[340018443,1728334250131,-11469.05124157,0.0004,40]
[340018445,1728334250141,-1176.51917806,0.0004,60]
[340018446,1728334250150,-300.0,0.0004,9]
[340018447,1728334250159,-375.75292897,0.0004,10]
[340018449,1728334250168,-500.0,0.0004,120]
[340018450,1728334250181,-500.0,0.0004,120]
[340018452,1728334250192,-500.0,0.0004,120]
[340018453,1728334250202,-222.68,0.0004,90]
[340018455,1728334250211,-500.0,0.0004,120]
[340018456,1728334250220,-150.0,0.0004,120]
[340018458,1728334250230,-500.0,0.0004,120]
[340018459,1728334250239,-500.0,0.0004,120]
[340018461,1728334250248,-500.0,0.0004,120]
[340018462,1728334250258,-500.0,0.0004,120]
[340018464,1728334250267,-746.07,0.0004,120]
[340018465,1728334250276,-500.0,0.0004,120]
[340018467,1728334250285,-524.72,0.0004,120]
[340018468,1728334250294,-193.727716,0.0004,14]
[340018470,1728334250303,-193.727716,0.0004,14]